Cogmind - Beta 15 @@@ ROGUE MODE // 2025.07.06 @ 22:37:26 Player: SuperSwiss Result: Self-destructed Performance ------------- Evolutions (0) 0 Regions Visited (4) 800 Robots Destroyed (30) 150 Value Destroyed (616) 616 Prototype IDs (26) 520 Alien Tech Used (0) 0 Bonus (314) 314 TOTAL SCORE: 2400 Bonus ------- Follower Combat Kills 14 Aligned with FarCom 300 Cogmind --------- Core Integrity 37/250 Matter 227/300 Energy 100/100 System Corruption 8% Temperature Cool (33) Movement Core (400) Ox7 Location -9/Mines Parts ------- > --- POWER (1) -------- (None) > --- PROPULSION (2) --- Light Treads > --- UTILITY (2) ------ Large Storage Unit > --- WEAPON (2) ------- Beam Cannon Mining Laser > --- INVENTORY (15) --- Ion Engine Wheel Improved Heat Sink Huge Storage Unit Core Shielding Hacking Suite Beam Cannon Beam Cannon Guided Plasma Cannon Light Assault Rifle Rocket Launcher Datajack Peak State ------------ > --- POWER ------------ Light Nuclear Core > --- PROPULSION ------- Light Treads Compact Wheel > --- UTILITY ---------- Large Storage Unit Seismic Detector > --- WEAPON ----------- Datajack Mining Laser > --- INVENTORY -------- Ion Engine Light Fission Core Wheel Improved Heat Sink Huge Storage Unit Core Shielding Hacking Suite Beam Cannon Beam Cannon Beam Cannon Guided Plasma Cannon Light Assault Rifle Grenade Launcher Rocket Launcher [Rating: 12] Favorites ----------- Power Light Nuclear Core Engine Ion Engine Power Core Light Nuclear Core Propulsion Compact Wheel Treads Light Treads Wheel Compact Wheel Utility Seismic Detector Device Seismic Detector Storage Large Storage Unit Protection Core Shielding Weapon Beam Cannon Energy Gun Small Laser Energy Cannon Beam Cannon Ballistic Gun Assault Rifle Launcher Grenade Launcher Special Weapon Mining Laser Special Melee Weapon Datajack Build | -11 -10 -10 -10 -9 ------- Run | Yrd Mat Min Exi Min Slots Evolved . | . . . . . Power . | . . . . . Propulsion . | . . . . . Utility . | . . . . . Weapon . | . . . . . Parts Attached 24 | 7 14 2 1 . Power 3 | 1 2 . . . Engine 2 | 1 1 . . . Core 1 | . 1 . . . Reactor . | . . . . . Propulsion 5 | 2 2 1 . . Treads 3 | 1 1 1 . . Leg . | . . . . . Wheel 2 | 1 1 . . . Hover . | . . . . . Flight . | . . . . . Utility 6 | 2 4 . . . Device 2 | 1 1 . . . Storage 3 | 1 2 . . . Processor . | . . . . . Hackware . | . . . . . Protection 1 | . 1 . . . Artifact . | . . . . . Weapon 10 | 2 6 1 1 . Energy Gun 1 | . 1 . . . Energy Cannon 3 | . 2 1 . . Ballistic Gun 3 | 2 1 . . . Ballistic Cannon . | . . . . . Launcher 1 | . 1 . . . Special Weapon 1 | . 1 . . . Impact Weapon . | . . . . . Slashing Weapon . | . . . . . Piercing Weapon . | . . . . . Special Melee Weapon 1 | . . . 1 . Unidentified Prototypes . | . . . . . Parts Lost 12 | . 7 1 . 4 Power 3 | . 2 . . 1 Propulsion 4 | . 2 1 . 1 Utility 1 | . . . . 1 Weapon 4 | . 3 . . 1 Highest Loss Streak 4 | . 3 1 . 4 To Critical Strikes . | . . . . . Average Backups 9 | 3 7 10 13 13 Power 1 | . 1 1 1 1 Propulsion . | 1 . . 1 1 Utility 2 | . 2 4 4 4 Weapon 3 | 1 2 4 6 5 Tool/Special . | . . . . . Unused Backups 11 | . 2 . . 9 Power 2 | . . . . 2 Propulsion 1 | . . . . 1 Utility 5 | . 2 . . 3 Weapon 3 | . . . . 3 Tool/Special . | . . . . . Average Slot Usage (%) 97 | . 96 99 100 100 Engine 4 | . 8 . . . Core 9 | . 4 14 14 14 Treads 12 | . 12 10 14 14 Wheel 15 | . 15 16 14 14 Device 13 | . 13 14 14 14 Storage 14 | . 14 14 14 14 Energy Cannon 11 | . 6 27 . 23 Ballistic Gun 9 | . 17 . . . Special Weapon 2 | . . . 13 3 Special Melee Weapon 2 | . . . 14 . Peak Build Rating 12 | 7 10 10 12 12 Average Rating 9 | 5 8 9 11 11 On Entrance 7 | . 7 10 10 12 Naked Turns . | . . . . . Heaviest Build 32 | 15 32 32 28 32 Greatest Support 40 | 20 40 32 16 16 Greatest Overweight (x) 1 | . 1 1 1 1 Average Overweight (x) . | . . . 1 1 Largest Inventory Capacity 15 | 8 15 15 15 15 Average Capacity 12 | 7 11 15 15 15 Most Carried 14 | 5 9 12 14 14 Average Carried 9 | 3 7 10 13 13 Final Capacity 15 | 8 15 15 15 15 Final Carried 14 | 5 9 12 14 12 Class Distribution -------------------- 100% | Mutant Dominant Class ---------------- Mutant | -10/Materials Mutant | -10/Mines Mutant | -10/Exiles Mutant | -9/Mines Resources | -11 -10 -10 -10 -9 ----------- Run | Yrd Mat Min Exi Min Matter Collected 925 | 280 520 84 . 41 Remotely . | . . . . . Salvage Created 831 | 52 663 104 . 12 Parts 58 | 7 41 8 . 2 Haulers Intercepted 1 | . 1 . . . Recyclers Shooed 2 | 2 . . . . Parts Field Recycled . | . . . . . Retrieved Matter . | . . . . . Parts Self-Destructed . | . . . . . Prevented . | . . . . . Kills | -11 -10 -10 -10 -9 ------- Run | Yrd Mat Min Exi Min Combat Hostiles Destroyed 19 | . 15 3 . 1 Guns 13 | . 13 . . . Cannons 2 | . . 1 . 1 AOE 4 | . 2 2 . . Classes Destroyed 9 | 1 7 1 . . Worker 2 | . 1 1 . . Tunneler 3 | 3 . . . . Hauler 1 | . 1 . . . Recycler 1 | . . 1 . . Mechanic 1 | . 1 . . . Operator 2 | . 2 . . . Watcher 1 | . 1 . . . Swarmer 7 | . 3 3 . 1 Grunt 12 | . 12 . . . Best Kill Streak 5 | 2 5 4 . 1 Combat Bots Only 4 | . 4 3 . 1 Max Kills in Single Turn 3 | 1 2 3 . 1 Gunslinging 1 | . 1 . . . Exploded 2 | . 1 2 . . Melee . | . . . . . Uniques/NPCs Destroyed . | . . . . . Combat | -11 -10 -10 -10 -9 -------- Run | Yrd Mat Min Exi Min Hostile Shots Fired 125 | . 108 11 . 6 Missed 33 | . 26 6 . 1 Hits 92 | . 82 5 . 5 Projectile 92 | . 82 5 . 5 AOE 2 | . . . . 2 Critical Strikes 1 | . 1 . . . Damage Taken 1273 | . 956 101 . 216 Core 213 | . 140 33 . 40 Absorbed by Shields . | . . . . . Redirected to Shielding 10 | . 10 . . . Core Remaining (%) 100 | 100 . . . . Volleys Fired 84 | 7 66 7 . 4 Largest 2 | 2 2 2 . 2 Hottest 120 | 40 100 120 . 120 Shots Fired 158 | 14 127 11 . 6 Gun 137 | 14 123 . . . Cannon 14 | . 1 9 . 4 Launcher 5 | . 2 2 . 1 Special 2 | . 1 . . 1 Kinetic 136 | 14 122 . . . Thermal 17 | . 3 9 . 5 Explosive 5 | . 2 2 . 1 Electromagnetic . | . . . . . Robot Hit Streak 17 | 2 17 3 . 5 Robot Miss Streak 5 | 2 4 5 . 2 Penetration Max . | . . . . . Secondary Targets 4 | . 4 . . . Max Gunslinging Chain 1 | . 1 . . . Shots Hit Robots 103 | 6 89 5 . 3 Core Hits 54 | 3 44 6 . 1 Critical Kills . | . . . . . Critical Parts Destroyed 1 | . 1 . . . Critical Strikes 1 | . 1 . . . Destroy 1 | . 1 . . . Melee Attacks . | . . . . . Impact . | . . . . . Slashing . | . . . . . Piercing . | . . . . . Sneak Attacks . | . . . . . Combat Hostiles . | . . . . . Follow-up Attacks . | . . . . . Damage Inflicted 1612 | 83 1188 286 . 55 Guns 1118 | 83 1035 . . . Cannons 128 | . . 73 . 55 Explosions 363 | . 150 213 . . Melee . | . . . . . Ramming 3 | . 3 . . . Kinetic 1108 | 83 1025 . . . Thermal 138 | . 10 73 . 55 Explosive 363 | . 150 213 . . Electromagnetic . | . . . . . Impact . | . . . . . Slashing . | . . . . . Piercing . | . . . . . Highest Corruption 8 | . 8 8 8 8 Average Corruption 6 | . 4 8 8 8 Corruption Purged . | . . . . . Corruption Blocked . | . . . . . Effects 52 | . 28 13 10 1 Message Errors 10 | . 7 2 1 . Matter Fused 18 | . 6 4 7 1 Heat Flow Errors 9 | . 5 2 2 . Energy Discharges 3 | . 2 1 . . Parts Rejected 1 | . 1 . . . Data Loss (minor) 8 | . 4 4 . . Misfires 3 | . 3 . . . Overload Shots . | . . . . . Overflow Damage 38 | . 6 . . 32 Projectiles . | . . . . . Explosions 38 | . 6 . . 32 Melee . | . . . . . Knockbacks . | . . . . . Impact . | . . . . . Kinetic . | . . . . . Secondary . | . . . . . Self-Inflicted Damage 159 | . 59 62 . 38 Shots 5 | . 2 2 . 1 Rammed 1 | . 1 . . . Targets Rammed 1 | . 1 . . . Kicked . | . . . . . Crushed . | . . . . . Highest Temperature 449 | . 267 449 157 132 Average Temperature 103 | . 71 207 75 57 Received Heat Transfer 435 | . 429 . . 6 Effects 5 | . 2 3 . . Shutdowns 1 | . . 1 . . Interference 3 | . 2 1 . . Damage (minor) 1 | . . 1 . . Siege Activations . | . . . . . Martial Activations . | . . . . . Shielding Activations . | . . . . . Robots Disrupted . | . . . . . Combat Hostiles . | . . . . . Robots Corrupted . | . . . . . Combat Hostiles . | . . . . . Parts Fried . | . . . . . Impact Corruptions . | . . . . . Robots Melted . | . . . . . Combat Hostiles . | . . . . . Parts Melted 1 | . . 1 . . Heat Transferred 284 | . 25 148 . 111 Parts Sabotaged . | . . . . . Parts Stolen . | . . . . . Parts Stripped . | . . . . . Power Chain Reactions . | . . . . . Alert | -11 -10 -10 -10 -9 ------- Run | Yrd Mat Min Exi Min Maximum Alert Level . | . . . . . Low Security (%) 100 | 100 100 100 . 100 Level 1 . | . . . . . Level 2 . | . . . . . Level 3 . | . . . . . Level 4 . | . . . . . Level 5 . | . . . . . High Security . | . . . . . Max Security . | . . . . . Peak Influence 120 | 10 120 81 . 96 Initial . | . . . . . Average 36 | . 47 15 . 73 Influence Increases 687 | 15 462 106 . 104 Destroy 0b10 Robot/C 420 | . 300 60 . 60 Destroy 0b10 Robot/NC 55 | 15 30 10 . . Destroy Leader 94 | . 74 10 . 10 Allied During Kill 22 | . . 11 . 11 Successful Hack 15 | . 15 . . . Disable Machine 30 | . 15 . . 15 Destroy Structure 36 | . 13 15 . 8 Lose Combat Pursuer 15 | . 15 . . . Influence Decreases 673 | 15 462 106 . 90 Time Decay 533 | 15 392 96 . 30 Lost Part 120 | . 70 10 . 40 Lost Ally 20 | . . . . 20 Squads Dispatched 4 | . 4 . . . Investigation 2 | . 2 . . . Extermination . | . . . . . Reinforcement 2 | . 2 . . . Assault . | . . . . . Garrison . | . . . . . Intercept . | . . . . . Searches Triggered . | . . . . . Construction Impeded . | . . . . . Haulers Reinforced . | . . . . . Active Scanning Responses . | . . . . . Cargo Convoy Interrupts . | . . . . . Stealth | -11 -10 -10 -10 -9 --------- Run | Yrd Mat Min Exi Min Distress Signals 2 | . 2 . . . Communications Jammed . | . . . . . Distress Signals . | . . . . . Times Spotted 50 | . 32 3 . 15 Peak Tracking Total 16 | . 5 3 . 16 Tactical Retreats 2 | . 1 . . 1 Traps | -11 -10 -10 -10 -9 ------- Run | Yrd Mat Min Exi Min Traps Triggered 5 | . 5 . . . Indirectly . | . . . . . Trap Hack Attempts . | . . . . . Triggered . | . . . . . Disarmed . | . . . . . Reprogrammed . | . . . . . Reused . | . . . . . Traps Extracted . | . . . . . Installed . | . . . . . Triggered . | . . . . . Machines | -11 -10 -10 -10 -9 ---------- Run | Yrd Mat Min Exi Min Machines Disabled 2 | . 1 . . 1 Max in Single Turn 1 | . 1 . . . Machines Repaired . | . . . . . Machines Dismantled . | . . . . . Machines Sabotaged . | . . . . . Overloaded Fab Kills . | . . . . . Hacking | -11 -10 -10 -10 -9 --------- Run | Yrd Mat Min Exi Min Machines Accessed 10 | . 8 1 1 . Terminals 6 | . 6 . . . Fabricators . | . . . . . Repair Stations . | . . . . . Recycling Units 2 | . 2 . . . Scanalyzers . | . . . . . Garrison Access . | . . . . . Total Hacks 23 | . 21 1 1 . Successful 12 | . 10 1 1 . Failed 11 | . 11 . . . Catastrophic . | . . . . . Database Lockouts . | . . . . . Manual 14 | . 13 . 1 . Terminals 19 | . 19 . . . Fabricators . | . . . . . Repair Stations . | . . . . . Recycling Units 2 | . 2 . . . Scanalyzers . | . . . . . Garrison Access . | . . . . . Terminal Hacks 7 | . 5 1 1 . Robot Analysis 2 | . 2 . . . Prototype ID Bank 2 | . 2 . . . Open Door 1 | . . 1 . . Hauler Manifests 1 | . 1 . . . Proto ID Catalog 1 | . . . 1 . Fabricator Hacks . | . . . . . Repair Station Hacks . | . . . . . Recycling Unit Hacks 2 | . 2 . . . Retrieve Components 2 | . 2 . . . Scanalyzer . | . . . . . Garrison Access Hacks . | . . . . . Unauthorized Hacks 3 | . 3 . . . Terminals 3 | . 3 . . . Botnet 3 | . 3 . . . Fabricators . | . . . . . Repair Stations . | . . . . . Recycling Units . | . . . . . Scanalyzers . | . . . . . Garrison Access . | . . . . . Data Cores Recovered . | . . . . . Used . | . . . . . Hacking Detections 6 | . 6 . . . Full Trace Events 1 | . 1 . . . Feedback Events . | . . . . . Feedback Blocked . | . . . . . Robot Schematics Acquired . | . . . . . Robots Built . | . . . . . Authchips . | . . . . . Time . | . . . . . Total Robot Build Rating . | . . . . . Part Schematics Acquired . | . . . . . Parts Built . | . . . . . Authchips . | . . . . . Time . | . . . . . Total Part Build Rating . | . . . . . Parts Repaired . | . . . . . Time . | . . . . . Parts Recycled . | . . . . . Recycled Matter . | . . . . . Retrieved Matter . | . . . . . Retrieved Components 19 | . 19 . . . Parts Scanalyzed . | . . . . . Part Schematics Acquired . | . . . . . Parts Damaged . | . . . . . Bothacking | -11 -10 -10 -10 -9 ------------ Run | Yrd Mat Min Exi Min Used RIF Installer . | . . . . . Robots Hacked . | . . . . . Non-combat . | . . . . . Combat . | . . . . . Robot Hacks Applied . | . . . . . Relay Couplers Released . | . . . . . Fabnet Peak Effective % . | . . . . . Robots Rewired . | . . . . . Allies Hacked . | . . . . . Hacks Repelled . | . . . . . Allies | -11 -10 -10 -10 -9 -------- Run | Yrd Mat Min Exi Min Total Allies 3 | . . 3 . . Largest Group 3 | . . 3 3 3 Highest-Rated Group 40 | . . 40 40 40 Highest-Rated Ally 16 | . . 16 16 16 Total Orders 4 | . . 4 . . STAY 2 | . . 2 . . FOLLOW 2 | . . 2 . . Ally Attacks 18 | . . 2 . 16 Total Damage 151 | . . 10 . 141 Kills 2 | . . . . 2 Allies Corrupted . | . . . . . Allies Melted . | . . . . . Intel | -11 -10 -10 -10 -9 ------- Run | Yrd Mat Min Exi Min Active Infowar (turns) 1981 | 38 1072 494 304 73 Seismic 1981 | 38 1072 494 304 73 Robot Analysis Total 2 | . 2 . . . Derelict Logs Recovered 2 | . . 1 . 1 Drone Launches . | . . . . . Drone Recoveries . | . . . . . Exploration | -11 -10 -10 -10 -9 ------------- Run | Yrd Mat Min Exi Min Turns Passed 2082 | 110 1098 494 304 76 Spaces Moved 1440 | 61 700 370 261 48 Core 3 | 3 . . . . Treads 177 | 26 151 . . . Legs . | . . . . . Wheels 1260 | 32 549 370 261 48 Hover . | . . . . . Flight . | . . . . . Fastest Speed 50 | 50 100 100 115 115 Average Speed 114 | 123 113 112 115 115 Slowest Speed 160 | 160 160 115 115 115 Overloaded Moves . | . . . . . Propulsion Burnouts . | . . . . . Robots Hopped . | . . . . . Potential Cave-ins . | . . . . . Cave-ins Triggered . | . . . . . Exploration Rate (%) 51 | 4 96 73 70 12 Regions Visited 4 Branch Regions 3 Pre-discovered Areas . | . . . . . Known Exits Taken . | . . . . . Unknown Exits Taken 4 | 1 1 1 1 . Scrap Searched 2 | . . 2 . . Spaces Dug 2 | . 1 . . 1 Terrain Destroyed 42 | . 16 17 . 9 Melee . | . . . . . Projectile 2 | . 1 . . 1 AOE 40 | . 15 17 . 8 Terrain Rammed . | . . . . . Walls Destroyed . | . . . . . Machines Disabled . | . . . . . Actions | -11 -10 -10 -10 -9 --------- Run | Yrd Mat Min Exi Min Total 1722 | 79 884 436 264 59 Wait 133 | . 78 53 . 2 Move 1436 | 60 699 369 260 48 Hop . | . . . . . Pick Up 25 | 5 14 4 2 . Fast Attach 8 | 7 1 . . . Attach 12 | . 10 1 . 1 Detach 2 | . 2 . . . Swap 14 | . 7 2 2 3 Drop 7 | . 6 . . 1 Fire 84 | 7 66 7 . 4 Melee . | . . . . . Ram 1 | . 1 . . . Kick . | . . . . . Crush . | . . . . . Escape Stasis . | . . . . . Rewire . | . . . . . Trap . | . . . . . Miscellaneous . | . . . . . Route ------- -11/Scrapyard -10/Materials (discovered 5 exits: [*Mat x3] / *Min x2) -10/Mines (discovered 4 exits: [*Mat x2] / *Exi / [*Sub]) -10/Exiles -9/Mines History --------- Turn | Location | Event 31 | -11/Scrapyard | Discovered new exit (range 16) 111 | -11/Scrapyard | Entered Materials 329 | -10/Materials | Build established: Mutant 479 | -10/Materials | Discovered new exit (range 16) 681 | -10/Materials | Discovered new exit (range 16) 746 | -10/Materials | Discovered new exit (range 7) 806 | -10/Materials | Core integrity fell below 50% 839 | -10/Materials | Lost 3 parts (1p2w) 908 | -10/Materials | Discovered new exit (range 15) 1117 | -10/Materials | Discovered new exit (range 6) 1209 | -10/Materials | Entered Mines 1210 | -10/Mines | Assisted by bots powering up and referring to "LRC-V3" 1223 | -10/Mines | Learned Materials garrison access intel 1325 | -10/Mines | Discovered new exit (range 9) 1367 | -10/Mines | Received a Rocket Launcher from a helpful Derelict 1398 | -10/Mines | Discovered new exit (range 6) 1531 | -10/Mines | Met a Derelict who couldn't figure out how to use a Trap Extractor 1658 | -10/Mines | Discovered new exit (range 10) 1695 | -10/Mines | Deemed a non-threat by the Exiles lab entrance 1695 | -10/Mines | Discovered new exit (range 5) 1703 | -10/Mines | Entered Exiles 1703 | -10/Exiles | Accompanied by 3 allies 1741 | -10/Exiles | Met 8R-AWN 1758 | -10/Exiles | Met EX-HEX 1814 | -10/Exiles | Met EX-DEC 1839 | -10/Exiles | Met EX-BIN 1855 | -10/Exiles | Aligned with FarCom system 1856 | -10/Exiles | Given EX-Vault access code 1883 | -10/Exiles | Opened EX-Vault 1890 | -10/Exiles | Found Gui. Plasma Cannon 1913 | -10/Exiles | Warned to stay clear of 0b10 Research branches 1995 | -10/Exiles | Discovered new exit (range 12) 2007 | -10/Exiles | Left Exiles lab with Gui. Plasma Cannon 2007 | -10/Exiles | Entered Mines 2007 | -9/Mines | Accompanied by 3 allies 2033 | -9/Mines | Learned Materials stockpile data 2048 | -9/Mines | Met a Derelict bent on vengeance 2049 | -9/Mines | Assembled infested the area 2054 | -9/Mines | Assisted by a Guerilla fighting off Assembled 2083 | -9/Mines | Core integrity fell below 20% 2083 | -9/Mines | Self-destructed Last Messages --------------- 02062_ HV Slug penetrates Wall. 02066_ HV Slug penetrates as-53473. 02066_ as-53473 knocked back. 02070_ Grenade Launcher destroyed. 02070_ Destroyed Grenade Launcher. 02070_ HV Slug penetrates Wall. 02070_ RE-7Y9(h) system corrupted by crushing effect. 02070_ RE-7Y9(h) destroyed. 02072_ U-05 Engineer builds a Wall. 02074_ Dropped Rigged Lgt. Fission Core. 02076_ U-05 Engineer lays Concrete. 02080_ Rigged Lgt. Fission Core explodes. 02080_ Seismic Detector destroyed. 02080_ U-05 Engineer destroyed. 02080_ R-06 Scavenger collects Terrain Scanner. 02081_ C-30 ARC bursts open, deploying its payload. 02081_ D-53 Grenadier unfolds itself. 02081_ R-06 Scavenger destroyed. 02082_ Com. Wheel destroyed. 02082_ Lgt. Nuclear Core destroyed. Map ----- +----------------------------------------------------+ | ????????????????????????????????????# = #??? | | ????????????????????????????????????# * =#??? | | ????????????????????????????????????# "" #??? | | ????????????????????????????????????# """ #??? | | ????????????????????????????????????# """ #??? | | ????????????????##??????????????????# #??? | | ????????????????# ?????????????????#### ####??? | | ???????????????? ???????????????????# #?????? | | ????????????????? ??????????????????# #?????? | | ??????????????????? #?????????????????# #?????? | | ???????????????????? ######???????????# #?????? | | ????????????????????? #???????????# #?????? | | ?????????????????????? ???######### #?????? | | ??????????????????????? a ???# ## #?????? | | ???????????????????????"" #???# #### ## #?????? | | ????????????????????????"aa##### #??# ## #?????? | | ????????????????????????#aaa #?## ##????? | | ????????????????????????# #######?# #????? | | ????????????????????????# ####????# ##????? | | ????????????????????????# # #????## #?????? | | ??????????????????????### #?????## ##?????? | | ?????????????????????## # ##?????####??????? | | ????????????????????## #???????????????? | | ????????????????????# % = #???????????????? | | ????????????????????# d ! ##???????????????? | | ????????????????????# d@ ##????????????????? | | ????????????????????# % #?????????????????? | | ????????????????????##* #?????????????????? | | ?????????????????????# # #?????????????????? | | ?????????????????????# #######?????????????????? | | ????????????????????? ?????????????????????????? | | ????????????????????#??????????????????????????? | | ???????????????????????????????????????????????? | | ???????????????????????????????????????????????? | | ???????????????????????????????????????????????? | | ???????????????????????????????????????????????? | | ???????????????????????????????????????????????? | | ???????????????????????????????????????????????? | | ???????????????????????????????????????????????? | | ???????????????????????????????????????????????? | | ???????????????????????????????????????????????? | | ???????????????????????????????????????????????? | | ???????????????????????????????????????????????? | | ???????????????????????????????????????????????? | | ???????????????????????????????????????????????? | | ???????????????????????????????????????????????? | | ???????????????????????????????????????????????? | | ???????????????????????????????????????????????? | | ???????????????????????????????????????????????? | | ???????????????????????????????????????????????? | +----------------------------------------------------+ Best States ------------- Heat Dissipation 25 Energy Generation 14 Energy Capacity 250 Matter Stores 300 Matter Capacity 300 Sight Range 16 Terrain Scan Density 10 Core Shielding 20 Evasion (%) 40 Recoil Reduction 2 Item Schematics ----------------- None Robot Schematics ------------------ None Fabricated ------------ Nothing Repaired ---------- Nothing Alien Tech Used ----------------- None Achievements -------------- None Challenges ------------ None Game ------ Seed GammaMachineStatue Manual? 0 Play Time 00:21:41 Cumulative 116.5 hours Start 2025.07.06 @ 22:17:11 End 2025.07.06 @ 22:37:26 Sessions 1 Manual Loads 0 Difficulty Rogue Special Mode None Game No. 96 Rogue 93 Adventurer 0 Explorer 3 Win Type - Total 1 Types 1/0/0/0/0/0/0/0/0/0 Lore% 24 Gallery% 46 Achievement% 44 Wizard Run 0 Options --------- Layout 0 ASCII 0 Keyboard 0 Movement Numpad Keybinds 0 Fullscreen 2 Font 16/SmallcapsGlow Map View 88x55 Zoom Use 0% Tactical HUD 1 Map Filters NONE Filters NONE Steam 1 RUN: 3ef74d59-f303-4073-80bf-572d5703b84b